fUST/lending_fUST_20250608
["ID","MTS","AMOUNT","RATE_DAILY","PERIOD"]
[365000659,1749389445203,-420.0,0.00019726,2]
[365000660,1749389445212,-846.88,0.00019726,2]
[365000661,1749389445222,-440.0,0.00019726,2]
[365000662,1749389445232,-549.98,0.00019726,2]
[365000663,1749389445242,-440.0,0.00019726,2]
[365000664,1749389445251,-517.04,0.00019726,2]
[365000665,1749389445261,-440.0,0.00019726,2]
[365000666,1749389445269,-751.28,0.00019726,2]
[365000667,1749389445279,-440.0,0.00019726,2]
[365000668,1749389445287,-440.0,0.00019726,2]
[365000669,1749389445296,-440.0,0.00019726,2]
[365000670,1749389445305,-440.0,0.00019726,2]
[365000671,1749389445313,-420.0,0.00019726,2]
[365000672,1749389445323,-2350.88,0.00019726,2]
[365000673,1749389445333,-2464.05,0.00019726,2]
[365000674,1749389445342,-440.0,0.00019726,2]
[365000675,1749389445351,-440.0,0.00019726,2]
[365000676,1749389445361,-440.0,0.00019726,2]
[365000677,1749389445370,-440.0,0.00019726,2]
[365000678,1749389445380,-825.2,0.00019726,2]
[365000679,1749389445391,-1087.19,0.00019726,2]
[365000680,1749389445400,-659.18,0.00019726,2]
[365000681,1749389445410,-440.0,0.00019726,2]
[365000682,1749389445419,-420.0,0.00019726,2]
[365000683,1749389445428,-440.0,0.00019726,2]
[365000684,1749389445438,-440.0,0.00019726,2]
[365000685,1749389445447,-447.65,0.00019726,2]
[365000686,1749389445457,-1456.47,0.00019726,2]
[365000687,1749389445466,-1332.79,0.00019726,2]
[365000688,1749389445476,-440.0,0.00019726,2]
[365000689,1749389445486,-481.41,0.00019726,2]
[365000690,1749389445496,-2544.19,0.00019726,2]
[365000691,1749389445506,-608.42,0.00019726,2]
[365000692,1749389445517,-224.96,0.00019726,2]
[365000693,1749389445529,-2088.38,0.00019726,2]
[365000694,1749389445539,-457.45,0.00019726,2]
[365000695,1749389445549,-1738.03,0.00019726,2]
[365000696,1749389445559,-548.12,0.00019726,2]
[365000697,1749389445569,-440.0,0.00019726,2]
[365000698,1749389445579,-1285.83,0.00019726,2]
[365000699,1749389445588,-440.0,0.00019726,2]
[365000700,1749389445597,-1713.04,0.00019726,2]
[365000701,1749389445608,-440.0,0.00019726,2]
[365000702,1749389445620,-868.08,0.00019726,2]
[365000703,1749389445630,-410.0,0.00019726,2]
[365000704,1749389445643,-440.0,0.00019726,2]
[365000705,1749389445655,-440.0,0.00019726,2]
[365000706,1749389445665,-1089.05,0.00019726,2]
[365000707,1749389445675,-220.0,0.00019726,2]
[365000708,1749389445685,-1400.0,0.00019786,2]
[365000709,1749389445694,-420.0,0.00019827,2]
[365000710,1749389445704,-420.0,0.00019827,2]
[365000711,1749389445714,-1751.04223638,0.0002,2]
[365000712,1749389445723,-440.0,0.0002,2]
[365000713,1749389445733,-428.29126147,0.0002,2]
[365000714,1749389445743,-440.0,0.0002,2]
[365000716,1749389445752,-440.0,0.0002,2]
[365000718,1749389445762,-440.0,0.0002,2]
[365000719,1749389445771,-440.0,0.0002,2]
[365000720,1749389445780,-440.0,0.0002,2]
[365000721,1749389445790,-440.0,0.0002,2]
[365000722,1749389445799,-877.67,0.0002,2]
[365000723,1749389445808,-440.0,0.0002,2]
[365000724,1749389445818,-440.0,0.0002,2]
[365000725,1749389445829,-440.0,0.0002,2]
[365000726,1749389445840,-846.88,0.0002,2]
[365000727,1749389445852,-440.0,0.0002,2]
[365000728,1749389445862,-549.98,0.0002,2]
[365000729,1749389445872,-440.0,0.0002,2]
[365000730,1749389445882,-751.28,0.0002,2]
[365000731,1749389445893,-440.0,0.0002,2]
[365000732,1749389445903,-440.0,0.0002,2]
[365000733,1749389445912,-440.0,0.0002,2]
[365000734,1749389445922,-440.0,0.0002,2]
[365000735,1749389445935,-2350.88,0.0002,2]
[365000736,1749389445946,-2464.05,0.0002,2]
[365000737,1749389445956,-440.0,0.0002,2]
[365000738,1749389445966,-170.54313436,0.0002,2]
[365000739,1749389445976,-440.0,0.0002,2]
[365000740,1749389445986,-440.0,0.0002,2]
[365000741,1749389445996,-825.2,0.0002,2]
[365000742,1749389446006,-1087.19,0.0002,2]
[365000743,1749389446017,-659.18,0.0002,2]
[365000744,1749389446029,-176.96527402,0.0002,2]
[365000745,1749389446042,-440.0,0.0002,2]
[365000746,1749389446051,-447.65,0.0002,2]
[365000747,1749389446063,-1456.47,0.0002,2]
[365000748,1749389446074,-1332.79,0.0002,2]
[365000749,1749389446084,-440.0,0.0002,2]
[365000750,1749389446095,-481.41,0.0002,2]
[365000751,1749389446107,-2544.19,0.0002,2]
[365000752,1749389446117,-608.42,0.0002,2]
[365000753,1749389446128,-2088.38,0.0002,2]
[365000754,1749389446139,-457.45,0.0002,2]
[365000755,1749389446148,-1738.03,0.0002,2]
[365000756,1749389446157,-548.12,0.0002,2]
[365000757,1749389446167,-440.0,0.0002,2]
[365000758,1749389446176,-1285.83,0.0002,2]
[365000759,1749389446185,-440.0,0.0002,2]
[365000761,1749389446195,-1713.04,0.0002,2]
[365000762,1749389446204,-440.0,0.0002,2]
[365000764,1749389446213,-868.08,0.0002,2]
[365000765,1749389446223,-440.0,0.0002,2]
[365000766,1749389446232,-440.0,0.0002,2]
[365000767,1749389446241,-1089.05,0.0002,2]
[365000768,1749389446251,-766.89,0.00020118,2]
[365000769,1749389446261,-160.0,0.00020178,3]
[365000770,1749389446270,-503.93294425,0.00020268,2]
[365000771,1749389446279,-151.50442311,0.00020273,2]
[365000772,1749389446289,-440.0,0.00020273,2]
[365000773,1749389446298,-440.0,0.00020273,2]
[365000774,1749389446307,-440.0,0.00020273,2]
[365000775,1749389446317,-440.0,0.00020273,2]
[365000776,1749389446327,-440.0,0.00020273,2]
[365000777,1749389446337,-440.0,0.00020273,2]
[365000778,1749389446346,-877.67,0.00020273,2]
[365000779,1749389446356,-440.0,0.00020273,2]
[365000780,1749389446366,-440.0,0.00020273,2]
[365000781,1749389446375,-440.0,0.00020273,2]
[365000782,1749389446385,-846.88,0.00020273,2]
[365000783,1749389446394,-440.0,0.00020273,2]
[365000784,1749389446405,-549.98,0.00020273,2]
[365000785,1749389446415,-440.0,0.00020273,2]
[365000786,1749389446425,-751.28,0.00020273,2]
[365000787,1749389446434,-440.0,0.00020273,2]
[365000788,1749389446444,-440.0,0.00020273,2]
[365000789,1749389446454,-440.0,0.00020273,2]
[365000790,1749389446465,-440.0,0.00020273,2]
[365000791,1749389446475,-2350.88,0.00020273,2]
[365000792,1749389446486,-2464.05,0.00020273,2]
[365000793,1749389446495,-440.0,0.00020273,2]
[365000794,1749389446505,-440.0,0.00020273,2]
[365000795,1749389446515,-173.40771855,0.00020273,2]
[365000796,1749389446524,-825.2,0.00020273,2]
[365000797,1749389446534,-1087.19,0.00020273,2]
[365000798,1749389446544,-659.18,0.00020273,2]
[365000799,1749389446554,-440.0,0.00020273,2]
[365000800,1749389446564,-447.65,0.00020273,2]
[365000801,1749389446574,-1456.47,0.00020273,2]
[365000802,1749389446585,-1332.79,0.00020273,2]
[365000803,1749389446595,-440.0,0.00020273,2]
[365000804,1749389446605,-481.41,0.00020273,2]
[365000805,1749389446615,-2544.19,0.00020273,2]
[365000806,1749389446625,-608.42,0.00020273,2]
[365000807,1749389446636,-2088.38,0.00020273,2]
[365000808,1749389446647,-457.45,0.00020273,2]
[365000809,1749389446656,-1738.03,0.00020273,2]
[365000810,1749389446666,-548.12,0.00020273,2]
[365000811,1749389446675,-440.0,0.00020273,2]
[365000812,1749389446685,-1285.83,0.00020273,2]
[365000813,1749389446694,-440.0,0.00020273,2]
[365000814,1749389446704,-1713.04,0.00020273,2]
[365000815,1749389446714,-440.0,0.00020273,2]
[365000816,1749389446724,-868.08,0.00020273,2]
[365000817,1749389446735,-440.0,0.00020273,2]
[365000818,1749389446744,-440.0,0.00020273,2]
[365000819,1749389446754,-1089.05,0.00020273,2]
[365000820,1749389446763,-160.0,0.00020318,2]
[365000821,1749389446772,-160.0,0.00020318,2]
[365000822,1749389446782,-160.0,0.00020318,2]
[365000823,1749389446793,-160.0,0.00020318,2]
[365000824,1749389446802,-213.05153702,0.00020318,2]
[365000825,1749389446813,-834.50537533,0.00020318,2]
[365000826,1749389446822,-229.60437222,0.00020318,2]
[365000827,1749389446832,-181.39076591,0.00020448,2]
[365000828,1749389446842,-387.29456596,0.00020486,2]
[365000829,1749389446853,-900.0,0.000205,3]
[365000830,1749389446863,-500.0,0.00020547,2]
[365000831,1749389446872,-160.0,0.00020547,2]
[365000832,1749389446882,-440.0,0.00020547,2]
[365000833,1749389446892,-394.53,0.00020547,2]
[365000834,1749389446902,-440.0,0.00020547,2]
[365000835,1749389446912,-440.0,0.00020547,2]
[365000836,1749389446922,-440.0,0.00020547,2]
[365000837,1749389446933,-877.67,0.00020547,2]
[365000838,1749389446943,-440.0,0.00020547,2]
[365000839,1749389446953,-440.0,0.00020547,2]
[365000840,1749389446962,-440.0,0.00020547,2]
[365000841,1749389446972,-846.88,0.00020547,2]
[365000842,1749389446981,-440.0,0.00020547,2]
[365000843,1749389446991,-549.98,0.00020547,2]
[365000844,1749389447000,-440.0,0.00020547,2]
[365000845,1749389447010,-751.28,0.00020547,2]
[365000846,1749389447024,-418.74079701,0.00020547,2]
[365000847,1749389447034,-440.0,0.00020547,2]
[365000848,1749389447046,-440.0,0.00020547,2]
[365000849,1749389447055,-440.0,0.00020547,2]
[365000850,1749389447067,-2350.88,0.00020547,2]
[365000851,1749389447077,-2464.05,0.00020547,2]
[365000852,1749389447193,-440.0,0.00020547,2]
[365000853,1749389447204,-440.0,0.00020547,2]
[365000854,1749389447214,-825.2,0.00020547,2]
[365000855,1749389447224,-1087.19,0.00020547,2]
[365000856,1749389447234,-659.18,0.00020547,2]
[365000857,1749389447245,-440.0,0.00020547,2]
[365000858,1749389447255,-447.65,0.00020547,2]
[365000859,1749389447266,-1456.47,0.00020547,2]
[365000860,1749389447276,-1332.79,0.00020547,2]
[365000861,1749389447286,-440.0,0.00020547,2]
[365000862,1749389447298,-481.41,0.00020547,2]
[365000863,1749389447309,-2544.19,0.00020547,2]
[365000864,1749389447319,-608.42,0.00020547,2]
[365000865,1749389447329,-2088.38,0.00020547,2]
[365000866,1749389447340,-457.45,0.00020547,2]
[365000867,1749389447350,-1738.03,0.00020547,2]
[365000868,1749389447361,-548.12,0.00020547,2]
[365000869,1749389447371,-440.0,0.00020547,2]
[365000870,1749389447382,-1285.83,0.00020547,2]
[365000871,1749389447392,-440.0,0.00020547,2]
[365000872,1749389447403,-1713.04,0.00020547,2]
[365000873,1749389447413,-422.9204542,0.00020547,2]
[365000874,1749389447423,-868.08,0.00020547,2]
[365000875,1749389447434,-440.0,0.00020547,2]
[365000876,1749389447444,-440.0,0.00020547,2]
[365000877,1749389447455,-1089.05,0.00020547,2]
[365000878,1749389447465,-1781.49,0.000206,2]
[365000879,1749389447475,-1162.98,0.000206,2]
[365000880,1749389447485,-474.27,0.00020821,2]
[365000881,1749389447494,-440.0,0.00020821,2]
[365000882,1749389447504,-440.0,0.00020821,2]
[365000883,1749389447514,-440.0,0.00020821,2]
[365000884,1749389447524,-877.67,0.00020821,2]
[365000885,1749389447534,-440.0,0.00020821,2]
[365000886,1749389447543,-440.0,0.00020821,2]
[365000887,1749389447554,-440.0,0.00020821,2]
[365000888,1749389447563,-846.88,0.00020821,2]
[365000889,1749389447574,-440.0,0.00020821,2]
[365000890,1749389447584,-549.98,0.00020821,2]
[365000891,1749389447595,-440.0,0.00020821,2]
[365000892,1749389447604,-751.28,0.00020821,2]
[365000893,1749389447615,-440.0,0.00020821,2]
[365000894,1749389447625,-440.0,0.00020821,2]
[365000895,1749389447635,-440.0,0.00020821,2]
[365000896,1749389447645,-2350.88,0.00020821,2]
[365000897,1749389447654,-2464.05,0.00020821,2]
[365000898,1749389447664,-440.0,0.00020821,2]
[365000899,1749389447674,-440.0,0.00020821,2]
[365000900,1749389447684,-825.2,0.00020821,2]
[365000901,1749389447694,-1087.19,0.00020821,2]
[365000902,1749389447703,-659.18,0.00020821,2]
[365000903,1749389447713,-440.0,0.00020821,2]
[365000904,1749389447723,-447.65,0.00020821,2]
[365000905,1749389447732,-1456.47,0.00020821,2]
[365000906,1749389447742,-1332.79,0.00020821,2]
[365000907,1749389447753,-481.41,0.00020821,2]
[365000908,1749389447763,-2544.19,0.00020821,2]
[365000909,1749389447772,-608.42,0.00020821,2]
[365000910,1749389447782,-2088.38,0.00020821,2]
[365000911,1749389447791,-457.45,0.00020821,2]
[365000912,1749389447803,-1738.03,0.00020821,2]
[365000913,1749389447813,-548.12,0.00020821,2]
[365000914,1749389447826,-440.0,0.00020821,2]
[365000915,1749389447837,-1285.83,0.00020821,2]
[365000916,1749389447848,-378.52840464,0.00020821,2]
[365000917,1749389447858,-1713.04,0.00020821,2]
[365000918,1749389447869,-868.08,0.00020821,2]
[365000919,1749389447879,-440.0,0.00020821,2]
[365000920,1749389447888,-440.0,0.00020821,2]
[365000921,1749389447898,-1089.05,0.00020821,2]
[365000922,1749389447909,-1400.0,0.00020882,2]
[365000923,1749389447919,-1150.34,0.00021033,2]
[365000924,1749389447928,-160.0,0.00021055,4]
[365000925,1749389447938,-155.0,0.00021095,2]
[365000926,1749389447948,-500.0,0.00021095,3]
[365000927,1749389447958,-430.0,0.00021095,2]
[365000928,1749389447968,-440.0,0.00021095,2]
[365000929,1749389447978,-427.60622184,0.00021095,2]
[365000930,1749389447987,-877.67,0.00021095,2]
[365000931,1749389447996,-440.0,0.00021095,2]
[365000932,1749389448006,-440.0,0.00021095,2]
[365000933,1749389448016,-440.0,0.00021095,2]
[365000934,1749389448028,-846.88,0.00021095,2]
[365000935,1749389448038,-440.0,0.00021095,2]
[365000936,1749389448048,-549.98,0.00021095,2]
[365000937,1749389448058,-440.0,0.00021095,2]
[365000938,1749389448070,-751.28,0.00021095,2]
[365000939,1749389448080,-440.0,0.00021095,2]
[365000940,1749389448090,-440.0,0.00021095,2]
[365000941,1749389448102,-440.0,0.00021095,2]
[365000942,1749389448114,-2350.88,0.00021095,2]
[365000943,1749389448123,-2464.05,0.00021095,2]
[365000944,1749389448133,-440.0,0.00021095,2]
[365000945,1749389448142,-477.13583775,0.00021095,2]
[365000946,1749389448152,-825.2,0.00021095,2]
[365000947,1749389448161,-1087.19,0.00021095,2]
[365000948,1749389448171,-659.18,0.00021095,2]
[365000949,1749389448180,-440.0,0.00021095,2]
[365000950,1749389448192,-447.65,0.00021095,2]
[365000951,1749389448202,-1456.47,0.00021095,2]
[365000952,1749389448212,-1332.79,0.00021095,2]
[365000953,1749389448223,-481.41,0.00021095,2]
[365000954,1749389448232,-2544.19,0.00021095,2]
[365000955,1749389448242,-608.42,0.00021095,2]
[365000956,1749389448252,-2088.38,0.00021095,2]
[365000957,1749389448262,-457.45,0.00021095,2]
[365000958,1749389448272,-1738.03,0.00021095,2]
[365000959,1749389448282,-548.12,0.00021095,2]
[365000960,1749389448293,-440.0,0.00021095,2]
[365000961,1749389448303,-1285.83,0.00021095,2]
[365000962,1749389448313,-1713.04,0.00021095,2]
[365000963,1749389448323,-868.08,0.00021095,2]
[365000964,1749389448333,-440.0,0.00021095,2]
[365000965,1749389448344,-440.0,0.00021095,2]
[365000966,1749389448354,-1089.05,0.00021095,2]
[365000967,1749389448364,-387.29456596,0.00021285,2]
[365000968,1749389448375,-440.0,0.00021369,2]
[365000969,1749389448385,-877.67,0.00021369,2]
[365000970,1749389448395,-440.0,0.00021369,2]
[365000971,1749389448405,-440.0,0.00021369,2]
[365000972,1749389448416,-440.0,0.00021369,2]
[365000973,1749389448426,-846.88,0.00021369,2]
[365000974,1749389448436,-440.0,0.00021369,2]
[365000975,1749389448446,-549.98,0.00021369,2]
[365000976,1749389448455,-440.0,0.00021369,2]
[365000977,1749389448466,-751.28,0.00021369,2]
[365000978,1749389448477,-440.0,0.00021369,2]
[365000979,1749389448487,-440.0,0.00021369,2]
[365000980,1749389448497,-440.0,0.00021369,2]
[365000981,1749389448507,-2350.88,0.00021369,2]
[365000982,1749389448516,-2464.05,0.00021369,2]
[365000983,1749389448527,-440.0,0.00021369,2]
[365000984,1749389448538,-825.2,0.00021369,2]
[365000985,1749389448548,-1087.19,0.00021369,2]
[365000986,1749389448559,-659.18,0.00021369,2]
[365000987,1749389448569,-218.72,0.00021369,2]
[365000988,1749389448579,-447.65,0.00021369,2]
[365000989,1749389448589,-1456.47,0.00021369,2]
[365000990,1749389448600,-1332.79,0.00021369,2]
[365000991,1749389448611,-481.41,0.00021369,2]
[365000992,1749389448621,-2544.19,0.00021369,2]
[365000993,1749389448631,-608.42,0.00021369,2]
[365000994,1749389448641,-2088.38,0.00021369,2]
[365000995,1749389448651,-457.45,0.00021369,2]
[365000996,1749389448661,-1738.03,0.00021369,2]
[365000997,1749389448671,-548.12,0.00021369,2]
[365000998,1749389448681,-440.0,0.00021369,2]
[365000999,1749389448691,-1285.83,0.00021369,2]
[365001000,1749389448701,-1713.04,0.00021369,2]
[365001001,1749389448712,-868.08,0.00021369,2]
[365001002,1749389448722,-440.0,0.00021369,2]
[365001003,1749389448732,-440.0,0.00021369,2]
[365001004,1749389448742,-1089.05,0.00021369,2]
[365001005,1749389448752,-34233.47,0.000214,2]
[365001006,1749389448761,-500.0,0.00021407,2]
[365001007,1749389448770,-600.0,0.00021407,2]
[365001008,1749389448779,-940.0,0.000215,4]
[365001009,1749389448789,-587.0,0.0002163,2]
[365001010,1749389448798,-587.0,0.0002163,2]
[365001011,1749389448807,-151.0,0.00021643,2]
[365001012,1749389448817,-500.0,0.00021643,4]
[365001013,1749389448827,-440.0,0.00021643,2]
[365001014,1749389448836,-877.67,0.00021643,2]
[365001015,1749389448846,-440.0,0.00021643,2]
[365001016,1749389448855,-440.0,0.00021643,2]
[365001017,1749389448866,-440.0,0.00021643,2]
[365001018,1749389448876,-846.88,0.00021643,2]
[365001019,1749389448885,-440.0,0.00021643,2]
[365001020,1749389448895,-549.98,0.00021643,2]
[365001021,1749389448904,-440.0,0.00021643,2]
[365001022,1749389448915,-751.28,0.00021643,2]
[365001023,1749389448924,-440.0,0.00021643,2]
[365001024,1749389448934,-440.0,0.00021643,2]
[365001025,1749389448944,-440.0,0.00021643,2]
[365001026,1749389448954,-2350.88,0.00021643,2]
[365001027,1749389448964,-2464.05,0.00021643,2]
[365001028,1749389448973,-440.0,0.00021643,2]
[365001029,1749389448983,-825.2,0.00021643,2]
[365001030,1749389448993,-1087.19,0.00021643,2]
[365001031,1749389449003,-659.18,0.00021643,2]
[365001032,1749389449012,-447.65,0.00021643,2]
[365001033,1749389449026,-1456.47,0.00021643,2]
[365001034,1749389449036,-1332.79,0.00021643,2]
[365001035,1749389449046,-481.41,0.00021643,2]
[365001036,1749389449056,-2544.19,0.00021643,2]
[365001037,1749389449067,-608.42,0.00021643,2]
[365001038,1749389449076,-2088.38,0.00021643,2]
[365001039,1749389449086,-457.45,0.00021643,2]
[365001040,1749389449096,-1738.03,0.00021643,2]
[365001041,1749389449106,-548.12,0.00021643,2]
[365001042,1749389449116,-440.0,0.00021643,2]
[365001043,1749389449126,-1285.83,0.00021643,2]
[365001044,1749389449137,-1713.04,0.00021643,2]
[365001045,1749389449147,-868.08,0.00021643,2]
[365001046,1749389449157,-440.0,0.00021643,2]
[365001047,1749389449167,-440.0,0.00021643,2]
[365001048,1749389449177,-1089.05,0.00021643,2]
[365001049,1749389449187,-433.57904682,0.00021775,2]
[365001050,1749389449197,-181.39076591,0.00021817,2]
[365001051,1749389449207,-500.0,0.00021859,2]
[365001052,1749389449217,-846.85,0.0002188,2]
[365001053,1749389449226,-501.85277261,0.00021881,2]
[365001054,1749389449236,-505.23537389,0.00021917,2]
[365001055,1749389449246,-215.96667312,0.00021917,2]
[365001056,1749389449256,-440.0,0.00021917,2]
[365001057,1749389449266,-877.67,0.00021917,2]
[365001058,1749389449276,-440.0,0.00021917,2]
[365001059,1749389449285,-440.0,0.00021917,2]
[365001060,1749389449296,-440.0,0.00021917,2]
[365001061,1749389449306,-846.88,0.00021917,2]
[365001062,1749389449316,-440.0,0.00021917,2]
[365001063,1749389449326,-549.98,0.00021917,2]
[365001064,1749389449335,-440.0,0.00021917,2]
[365001065,1749389449346,-751.28,0.00021917,2]
[365001066,1749389449356,-359.39,0.00021917,2]
[365001067,1749389449366,-440.0,0.00021917,2]
[365001068,1749389449376,-440.0,0.00021917,2]
[365001069,1749389449386,-2350.88,0.00021917,2]
[365001070,1749389449397,-2464.05,0.00021917,2]
[365001071,1749389449407,-440.0,0.00021917,2]
[365001072,1749389449416,-825.2,0.00021917,2]
[365001073,1749389449426,-1087.19,0.00021917,2]
[365001074,1749389449437,-659.18,0.00021917,2]
[365001075,1749389449447,-447.65,0.00021917,2]
[365001076,1749389449457,-1456.47,0.00021917,2]
[365001077,1749389449563,-1332.79,0.00021917,2]
[365001078,1749389449575,-481.41,0.00021917,2]
[365001079,1749389449586,-2544.19,0.00021917,2]
[365001080,1749389449598,-608.42,0.00021917,2]
[365001081,1749389449608,-2088.38,0.00021917,2]
[365001082,1749389449619,-457.45,0.00021917,2]
[365001083,1749389449629,-1738.03,0.00021917,2]
[365001084,1749389449640,-548.12,0.00021917,2]
[365001085,1749389449650,-440.0,0.00021917,2]
[365001086,1749389449660,-1285.83,0.00021917,2]
[365001087,1749389449670,-1713.04,0.00021917,2]
[365001088,1749389449681,-868.08,0.00021917,2]
[365001089,1749389449690,-440.0,0.00021917,2]
[365001090,1749389449701,-440.0,0.00021917,2]
[365001091,1749389449711,-1089.05,0.00021917,2]
[365001092,1749389449721,-159.616748,0.00021918,2]
[365001093,1749389449731,-500.0,0.00021926,2]
[365001094,1749389449740,-500.0,0.00021926,2]
[365001095,1749389449750,-160.0,0.00021931,5]
[365001096,1749389449760,-1533.79,0.00021947,2]
[365001097,1749389449770,-1000.0,0.00021955,2]
[365001098,1749389449781,-1200.0,0.00021955,2]
[365001099,1749389449790,-1400.0,0.00021978,2]
[365001100,1749389449800,-846.85,0.0002198,6]
[365001101,1749389449810,-183.0,0.00022,2]
[365001102,1749389449820,-97054.21,0.00022,7]
[365001103,1749389449830,-80960.62933716,0.00022,2]
[365001104,1749389449840,-386.53261844,0.00022,2]
[365001105,1749389449850,-842.5625,0.00022,7]
[365001106,1749389449859,-207.4,0.00022009,2]
[365001107,1749389449870,-500.0,0.00022009,2]
[365001108,1749389449880,-5000.0,0.00022009,2]
[365001109,1749389449889,-500.0,0.00022009,2]
[365001110,1749389449899,-500.0,0.00022009,2]
[365001111,1749389449909,-500.0,0.00022009,2]
[365001112,1749389449919,-500.0,0.00022009,2]
[365001113,1749389449929,-500.0,0.00022009,2]
[365001114,1749389449939,-500.0,0.00022009,2]
[365001115,1749389449948,-500.0,0.00022009,2]
[365001116,1749389449958,-500.0,0.00022009,2]
[365001117,1749389449968,-500.0,0.00022009,2]
[365001118,1749389449978,-500.0,0.00022009,2]
[365001119,1749389449988,-500.0,0.00022009,2]
[365001120,1749389449998,-461.42873487,0.00022009,2]
[365001121,1749389450008,-846.85,0.0002208,3]
[365001122,1749389450020,-387.29456596,0.00022085,2]
[365001123,1749389450031,-846.85,0.0002218,7]
[365001124,1749389450040,-500.0,0.00022191,5]
[365001125,1749389450052,-440.0,0.00022191,4]
[365001126,1749389450063,-877.67,0.00022191,4]
[365001127,1749389450073,-440.0,0.00022191,4]
[365001128,1749389450083,-440.0,0.00022191,4]
[365001129,1749389450093,-440.0,0.00022191,4]
[365001130,1749389450103,-846.88,0.00022191,4]
[365001131,1749389450114,-440.0,0.00022191,4]
[365001132,1749389450124,-549.98,0.00022191,4]
[365001133,1749389450134,-440.0,0.00022191,4]
[365001134,1749389450144,-751.28,0.00022191,4]
[365001135,1749389450154,-440.0,0.00022191,4]
[365001136,1749389450163,-440.0,0.00022191,4]
[365001137,1749389450173,-2350.88,0.00022191,4]
[365001138,1749389450183,-2464.05,0.00022191,4]
[365001139,1749389450193,-440.0,0.00022191,2]
[365001140,1749389450203,-825.2,0.00022191,4]
[365001141,1749389450212,-1087.19,0.00022191,4]
[365001142,1749389450222,-659.18,0.00022191,4]
[365001143,1749389450232,-447.65,0.00022191,4]
[365001144,1749389450242,-1456.47,0.00022191,4]
[365001145,1749389450252,-1332.79,0.00022191,4]
[365001146,1749389450261,-481.41,0.00022191,4]
[365001147,1749389450271,-2544.19,0.00022191,4]
[365001148,1749389450280,-608.42,0.00022191,4]
[365001149,1749389450290,-2088.38,0.00022191,4]
[365001150,1749389450301,-457.45,0.00022191,4]
[365001151,1749389450311,-1738.03,0.00022191,4]
[365001152,1749389450321,-548.12,0.00022191,4]
[365001153,1749389450332,-547.37368484,0.00022191,4]
[365001154,1749389450342,-1285.83,0.00022191,4]
[365001155,1749389450352,-1713.04,0.00022191,4]
[365001156,1749389450363,-868.08,0.00022191,4]
[365001157,1749389450373,-440.0,0.00022191,4]
[365001158,1749389450385,-440.0,0.00022191,4]
[365001159,1749389450395,-1089.05,0.00022191,4]
[365001160,1749389450404,-151.0,0.0002221,7]
[365001161,1749389450415,-846.85,0.0002228,3]
[365001162,1749389450425,-167.79915832,0.00022365,2]